[Event "4NCL Div 2 2024-25"]
[Site "England"]
[Date "2024.11.23"]
[Round "1.35"]
[White "Pal, Rohan"]
[Black "Stepanyan, Henrik"]
[Result "1/2-1/2"]
[ECO "D34"]
[WhiteElo "1970"]
[BlackElo "2205"]
[Annotator "RC"]
[PlyCount "83"]
[EventDate "2024.11.23"]
[EventType "team-tourn"]
[EventCountry "ENG"]
[SourceTitle "playchess.com"]
[Source "ChessBase"]
[SourceQuality "1"]
[TimeControl "40/6000+30:3000+30"]

1. c4 {[%emt 0:10:08]} e6 {[%emt 0:10:41]} 2. d4 {[%emt 0:00:29]} d5 {[%emt 0:00:16]} 3. Nf3 {[%emt 0:00:50]} c5 {[%emt 0:00:36]} 4. cxd5 {[%emt 0:00:18]} exd5 {[%emt 0:00:06]} 5. g3 {[%emt 0:00:26]} Nf6 {[%emt 0:04:13]} 6. Bg2 {[%emt 0:00:25]} Be7 {[%emt 0:00:42]} 7. O-O {[%emt 0:00:55]} O-O {[%emt 0:00:32]} 8. Nc3 {[%emt 0:02:46]} Nc6 {[%emt 0:00:08]} 9. dxc5 {[%emt 0:02:27]} Bxc5 {[%emt 0:00:11]} 10. Bg5 {[%emt 0:00:07]} d4 {[%emt 0:00:07]} 11. Bxf6 {[%emt 0:01:46]} Qxf6 {[%emt 0:00:10]} 12. Ne4 {[%emt 0:02:25]} Qe7 {[%emt 0:00:06]} 13. Nxc5 {[%emt 0:00:08]} Qxc5 {[%emt 0:00:05]} 14. Rc1 {[%emt 0:01:52]} Qb6 {[%emt 0:00:02]} 15. Qc2 {[%emt 0:00:53]} h6 {[%emt 0:02:01]} 16. Rfd1 {[%emt 0:07:51]} Be6 {[%emt 0:10:13]} 17. b3 {[%emt 0:01:54]} Rfd8 {[%emt 0:02:50]} 18. Rd2 {[%emt 0:09:53]} Rac8 {[%emt 0:33:41]} 19. Qd1 {[%emt 0:04:22]} Rc7 {[%emt 0:10:50]} 20. Ne1 {[%emt 0:10:43]} Rcd7 {[%emt 0:03:39]} 21. Nd3 {[%emt 0:01:54]} Bd5 {[%emt 0:02:32]} 22. b4 {[%emt 0:13:09]} Bxg2 {[%emt 0:06:38]} 23. Kxg2 {[%emt 0:00:40]} a5 {[%emt 0:00:12]} 24. bxa5 {[%emt 0:05:22]} Nxa5 {[%emt 0:02:46]} 25. Rc5 {[%emt 0:04:09]} Nc6 {[%emt 0:03:20]} 26. Rb2 {[%emt 0:02:36]} Qa7 {[%emt 0:01:22]} 27. Rcb5 {[%emt 0:04:04]} Re7 {[%emt 0:02:26]} 28. Qb1 {[%emt 0:04:05]} Rde8 {[%emt 0:09:57]} 29. Nf4 {[%emt 0:07:55]} Nd8 {[%emt 0:00:57]} 30. Qd3 {[%emt 0:01:56]} Nc6 {[%emt 0:02:54]} 31. Qb3 {[%emt 0:02:00]} Nd8 {[%emt 0:01:14]} 32. Qd3 {[%emt 0:01:36]} Nc6 {[%emt 0:00:05]} 33. Qb3 {[%emt 0:00:23]} Nd8 {[%emt 0:00:06]} 34. Qc4 {[%emt 0:01:01]} Nc6 {[%emt 0:01:06]} 35. Nd5 {[%emt 0:03:23]} Rd7 {[%emt 0:00:01]} 36. Qb3 {[%emt 0:01:47]} Red8 {[%emt 0:00:43]} 37. Nf4 {[%emt 0:00:44]} d3 {[%emt 0:00:20]} 38. Rd5 {[%emt 0:01:16]} Rxd5 {[%emt 0:00:46]} 39. Nxd5 {[%emt 0:00:05]} dxe2 {[%emt 0:00:23]} 40. Rxe2 {[%emt 0:00:31]} Nd4 {[%emt 0:00:59]} 41. Ne7+ {[%emt 0:50:49]} Kh8 {[%emt 0:21:02]} 42. Qd3 {[%emt 0:00:00]} 1/2-1/2

[Event "4NCL Div 2 2024-25"]
[Site "England"]
[Date "2024.11.23"]
[Round "1.36"]
[White "Pitcher, John"]
[Black "Patel, Keatan"]
[Result "1/2-1/2"]
[ECO "C24"]
[WhiteElo "2147"]
[BlackElo "1973"]
[Annotator "RC"]
[PlyCount "86"]
[EventDate "2024.11.23"]
[EventType "team-tourn"]
[EventCountry "ENG"]
[SourceTitle "playchess.com"]
[Source "ChessBase"]
[SourceQuality "1"]
[TimeControl "40/6000+30:3000+30"]

1. e4 {[%emt 0:10:05]} e5 {[%emt 0:10:12]} 2. Bc4 {[%emt 0:00:24]} Nf6 {[%emt 0:00:28]} 3. d3 {[%emt 0:00:08]} c6 {[%emt 0:00:06]} 4. Nf3 {[%emt 0:00:08]} d5 {[%emt 0:00:03]} 5. Bb3 {[%emt 0:00:10]} a5 {[%emt 0:00:02]} 6. Nc3 {[%emt 0:04:06]} Bb4 {[%emt 0:01:44]} 7. a3 {[%emt 0:00:18]} Bxc3+ {[%emt 0:00:05]} 8. bxc3 {[%emt 0:00:09]} a4 {[%emt 0:00:08]} 9. Ba2 {[%emt 0:00:06]} Qc7 {[%emt 0:00:55]} 10. O-O {[%emt 0:17:50]} O-O {[%emt 0:03:06]} 11. exd5 {[%emt 0:16:35]} cxd5 {[%emt 0:02:26]} 12. Bd2 {[%emt 0:00:12]} Be6 {[%emt 0:19:06]} 13. Re1 {[%emt 0:02:30]} Nbd7 {[%emt 0:02:17]} 14. Nxe5 {[%emt 0:14:31]} Nxe5 {[%emt 0:00:39]} 15. Bf4 {[%emt 0:00:09]} Nfd7 {[%emt 0:03:52]} 16. d4 {[%emt 0:00:27]} Qxc3 {[%emt 0:01:14]} 17. dxe5 {[%emt 0:00:42]} d4 {[%emt 0:33:23]} 18. Bd2 {[%emt 0:05:17]} Qc6 {[%emt 0:02:31]} 19. Bb4 {[%emt 0:02:04]} Rfc8 {[%emt 0:07:56]} 20. Qxd4 {[%emt 0:01:53]} Nb6 {[%emt 0:02:01]} 21. Bxe6 {[%emt 0:06:53]} Qxe6 {[%emt 0:00:40]} 22. Rad1 {[%emt 0:02:17]} h6 {[%emt 0:02:40]} 23. Qe4 {[%emt 0:01:26]} Qc6 {[%emt 0:04:00]} 24. Rd6 {[%emt 0:07:42]} Qxe4 {[%emt 0:01:13]} 25. Rxe4 {[%emt 0:00:04]} Nc4 {[%emt 0:02:46]} 26. Rdd4 {[%emt 0:03:42]} b5 {[%emt 0:02:24]} 27. f4 {[%emt 0:00:53]} Nb6 {[%emt 0:01:07]} 28. c3 {[%emt 0:00:57]} Rd8 {[%emt 0:00:32]} 29. Kf2 {[%emt 0:08:34]} Nd5 {[%emt 0:00:36]} 30. Ke2 {[%emt 0:00:47]} g6 {[%emt 0:00:51]} 31. Kd2 {[%emt 0:01:13]} Nb6 {[%emt 0:02:01]} 32. Kc2 {[%emt 0:00:43]} Nc4 {[%emt 0:00:55]} 33. g3 {[%emt 0:00:49]} Rac8 {[%emt 0:00:19]} 34. Rxd8+ {[%emt 0:00:52]} Rxd8 {[%emt 0:00:04]} 35. Rd4 {[%emt 0:00:09]} Re8 {[%emt 0:00:55]} 36. Kd3 {[%emt 0:01:43]} f6 {[%emt 0:00:10]} 37. exf6 {[%emt 0:01:21]} Re3+ {[%emt 0:00:23]} 38. Kc2 {[%emt 0:00:08]} Re2+ {[%emt 0:01:07]} 39. Kd1 {[%emt 0:00:31]} Rxh2 {[%emt 0:01:58]} 40. Rd7 {[%emt 0:00:43]} Ne3+ {[%emt 0:00:44]} 41. Ke1 {[%emt 0:24:14]} Nc2+ {[%emt 0:22:29]} 42. Kf1 {[%emt 0:01:35]} Nxb4 {[%emt 0:08:34]} 43. cxb4 {[%emt 0:00:11]} Ra2 {[%emt 0:00:04]} 1/2-1/2

[Event "4NCL Div 2 2024-25"]
[Site "England"]
[Date "2024.11.23"]
[Round "1.37"]
[White "Paterson, Andrew I"]
[Black "Dicen, Elis Denele"]
[Result "0-1"]
[ECO "A13"]
[WhiteElo "1976"]
[BlackElo "2100"]
[Annotator "RC"]
[PlyCount "124"]
[EventDate "2024.11.23"]
[EventType "team-tourn"]
[EventCountry "ENG"]
[SourceTitle "playchess.com"]
[Source "ChessBase"]
[SourceQuality "1"]
[TimeControl "40/6000+30:3000+30"]

1. c4 {[%emt 0:10:02]} e6 {[%emt 0:10:14]} 2. g3 {[%emt 0:00:27]} d5 {[%emt 0:00:08]} 3. Bg2 {[%emt 0:00:08]} Nf6 {[%emt 0:00:46]} 4. Nf3 {[%emt 0:00:09]} d4 {[%emt 0:01:34]} 5. O-O {[%emt 0:01:25]} Nc6 {[%emt 0:04:22]} 6. d3 {[%emt 0:02:14]} Be7 {[%emt 0:04:27]} 7. e3 {[%emt 0:03:42]} e5 {[%emt 0:04:50]} 8. exd4 {[%emt 0:00:17]} exd4 {[%emt 0:00:13]} 9. Bg5 {[%emt 0:09:21]} O-O {[%emt 0:04:23]} 10. Nbd2 {[%emt 0:02:14]} Bf5 {[%emt 0:05:26]} 11. Qb3 {[%emt 0:01:40]} Qd7 {[%emt 0:13:19]} 12. Rfe1 {[%emt 0:00:57]} h6 {[%emt 0:10:10]} 13. Bxf6 {[%emt 0:01:47]} Bxf6 {[%emt 0:00:17]} 14. Ne4 {[%emt 0:00:25]} Be7 {[%emt 0:02:36]} 15. a3 {[%emt 0:08:39]} a6 {[%emt 0:06:10]} 16. Qa4 {[%emt 0:02:36]} Rfe8 {[%emt 0:07:06]} 17. b4 {[%emt 0:01:01]} Bf8 {[%emt 0:01:31]} 18. Qb3 {[%emt 0:05:56]} b6 {[%emt 0:02:57]} 19. Qb2 {[%emt 0:14:42]} Rad8 {[%emt 0:01:49]} 20. Nh4 {[%emt 0:11:01]} Bg4 {[%emt 0:04:26]} 21. f4 {[%emt 0:00:37]} a5 {[%emt 0:04:03]} 22. Nf2 {[%emt 0:02:31]} Bh5 {[%emt 0:04:25]} 23. Bh3 {[%emt 0:05:08]} Qd6 {[%emt 0:03:53]} 24. Ne4 {[%emt 0:08:52]} Rxe4 {[%emt 0:07:32]} 25. Rxe4 {[%emt 0:00:06]} axb4 {[%emt 0:00:23]} 26. axb4 {[%emt 0:01:25]} Nxb4 {[%emt 0:00:42]} 27. Qd2 {[%emt 0:02:48]} Bg6 {[%emt 0:02:16]} 28. Nxg6 {[%emt 0:01:15]} Qxg6 {[%emt 0:00:34]} 29. Kh1 {[%emt 0:13:35]} Qc6 {[%emt 0:00:36]} 30. Bg2 {[%emt 0:00:00]} Qd7 {[%emt 0:00:57]} 31. Re5 {[%emt 0:00:00]} c5 {[%emt 0:00:57]} 32. Ra8 {[%emt 0:00:00]} Rxa8 {[%emt 0:00:47]} 33. Bxa8 {[%emt 0:00:00]} Qa7 {[%emt 0:00:48]} 34. Bg2 {[%emt 0:00:00]} Qa1+ {[%emt 0:00:34]} 35. Re1 {[%emt 0:00:00]} Qa3 {[%emt 0:00:39]} 36. Be4 {[%emt 0:00:00]} Qa6 {[%emt 0:00:22]} 37. f5 {[%emt 0:00:54]} b5 {[%emt 0:00:58]} 38. cxb5 {[%emt 0:00:16]} Qxb5 {[%emt 0:00:10]} 39. Rc1 {[%emt 0:00:23]} Qb6 {[%emt 0:00:28]} 40. Ra1 {[%emt 0:02:08]} Qd6 {[%emt 0:00:51]} 41. Ra7 {[%emt 0:51:24]} c4 {[%emt 0:39:33]} 42. dxc4 {[%emt 0:00:00]} d3 {[%emt 0:01:12]} 43. Ra1 {[%emt 0:00:00]} Qd4 {[%emt 0:01:57]} 44. Re1 {[%emt 0:00:00]} Nc2 {[%emt 0:01:55]} 45. Qxd3 {[%emt 0:00:00]} Qxd3 {[%emt 0:00:31]} 46. Bxd3 {[%emt 0:00:00]} Nxe1 {[%emt 0:00:07]} 47. Be4 {[%emt 0:00:00]} Bc5 {[%emt 0:00:31]} 48. g4 {[%emt 0:00:00]} Kf8 {[%emt 0:01:43]} 49. h4 {[%emt 0:00:00]} Bf2 {[%emt 0:01:29]} 50. g5 {[%emt 0:00:00]} Bxh4 {[%emt 0:03:21]} 51. gxh6 {[%emt 0:00:00]} gxh6 {[%emt 0:00:14]} 52. Kg1 {[%emt 0:00:00]} Ke7 {[%emt 0:00:39]} 53. c5 {[%emt 0:00:00]} f6 {[%emt 0:00:20]} 54. Kf1 {[%emt 0:00:00]} Bg3 {[%emt 0:00:21]} 55. Ke2 {[%emt 0:02:01]} h5 {[%emt 0:00:47]} 56. Ke3 {[%emt 0:00:07]} h4 {[%emt 0:00:29]} 57. Ke2 {[%emt 0:00:09]} h3 {[%emt 0:01:40]} 58. Ke3 {[%emt 0:00:07]} Ng2+ {[%emt 0:01:04]} 59. Kf3 {[%emt 0:00:07]} Be5 {[%emt 0:00:25]} 60. Kg4 {[%emt 0:00:57]} Nf4 {[%emt 0:00:12]} 61. Kh4 {[%emt 0:01:45]} h2 {[%emt 0:00:20]} 62. Kg4 {[%emt 0:00:34]} Nd3 {[%emt 0:00:46]} 0-1

[Event "4NCL Div 2 2024-25"]
[Site "England"]
[Date "2024.11.23"]
[Round "1.38"]
[White "Fellowes, Billy"]
[Black "Sandhu, Manvith"]
[Result "1-0"]
[ECO "D02"]
[WhiteElo "2055"]
[BlackElo "1978"]
[Annotator "NA RC"]
[PlyCount "113"]
[EventDate "2024.11.23"]
[EventType "team-tourn"]
[EventCountry "ENG"]
[SourceTitle "playchess.com"]
[Source "ChessBase"]
[SourceQuality "1"]
[TimeControl "40/6000+30:3000+30"]

1. d4 {[%emt 0:10:22]} d5 {[%emt 0:10:03]} 2. Bf4 {[%emt 0:00:07]} Nf6 {[%emt 0:00:05]} 3. Nf3 {[%emt 0:00:05]} e6 {[%emt 0:00:10]} 4. e3 {[%emt 0:00:07]} c5 {[%emt 0:00:11]} 5. c3 {[%emt 0:02:35]} Nc6 {[%emt 0:03:36]} 6. Bd3 {[%emt 0:00:21]} Bd6 {[%emt 0:06:00]} 7. Bg3 {[%emt 0:07:14]} a6 {[%emt 0:05:13]} 8. Nbd2 {[%emt 0:01:38]} b5 {[%emt 0:05:06]} 9. dxc5 {[%emt 0:01:31]} Bxc5 {[%emt 0:00:42]} 10. e4 {[%emt 0:01:03]} dxe4 {[%emt 0:18:44]} 11. Nxe4 {[%emt 0:01:05]} Be7 {[%emt 0:05:45]} 12. Qe2 {[%emt 0:07:24]} Nd5 {[%emt 0:04:41]} 13. Rd1 {[%emt 0:07:56]} O-O {[%emt 0:02:27]} 14. h4 {[%emt 0:06:12]} h6 {[%emt 0:06:27]} 15. Bb1 {[%emt 0:06:13]} f5 {[%emt 0:05:52]} 16. Ned2 {[%emt 0:00:37]} Bd6 {[%emt 0:01:42]} 17. Bxd6 {[%emt 0:04:17]} Qxd6 {[%emt 0:00:06]} 18. O-O {[%emt 0:01:29]} Nf4 {[%emt 0:08:21]} 19. Qe3 {[%emt 0:00:26]} Nd5 {[%emt 0:00:44]} 20. Qd3 {[%emt 0:01:38]} Ne5 {[%emt 0:00:18]} 21. Nxe5 {[%emt 0:00:32]} Qxe5 {[%emt 0:00:04]} 22. Rfe1 {[%emt 0:00:21]} Qf6 {[%emt 0:00:18]} 23. Nf3 {[%emt 0:00:16]} Bb7 {[%emt 0:02:07]} 24. Qd4 {[%emt 0:00:26]} Rfe8 {[%emt 0:03:39]} 25. Qxf6 {[%emt 0:01:42]} gxf6 {[%emt 0:01:22]} 26. Nd4 {[%emt 0:01:23]} Kf7 {[%emt 0:00:36]} 27. Bc2 {[%emt 0:05:28]} Re7 {[%emt 0:03:25]} 28. Bb3 {[%emt 0:01:28]} Rd8 {[%emt 0:04:26]} 29. Kh2 {[%emt 0:00:30]} Rd6 {[%emt 0:05:04]} 30. Rd2 {[%emt 0:01:51]} Re8 {[%emt 0:01:52]} 31. Rde2 {[%emt 0:00:32]} f4 {[%emt 0:04:00]} 32. g3 {[%emt 0:05:05]} f3 {[%emt 0:01:37]} 33. Re4 {[%emt 0:02:07]} Nc7 {[%emt 0:01:38]} 34. Rf4 {[%emt 0:01:31]} Bd5 {[%emt 0:00:29]} 35. Bc2 {[%emt 0:02:02]} Rdd8 {[%emt 0:00:38]} 36. h5 {[%emt 0:04:21]} Rg8 {[%emt 0:00:28]} 37. Bg6+ {[%emt 0:00:37]} Rxg6 {[%emt 0:00:22]} 38. hxg6+ {[%emt 0:00:06]} Kxg6 {[%emt 0:00:01]} 39. Rg4+ {[%emt 0:01:38]} Kf7 {[%emt 0:00:06]} 40. Rh4 {[%emt 0:03:03]} Kg6 {[%emt 0:00:13]} 41. Rg4+ {[%emt 0:51:47]} Kf7 {[%emt 0:50:09]} 42. Rf4 {[%emt 0:00:04]} Kg6 {[%emt 0:00:00]} 43. Nxf3 {[%emt 0:00:00]} e5 {[%emt 0:00:00]} 44. Nh4+ {[%emt 0:00:00]} Kf7 {[%emt 0:00:00]} 45. Rxe5 {[%emt 0:00:00]} Ne6 {[%emt 0:00:00]} 46. Rff5 {[%emt 0:00:00]} Bxa2 {[%emt 0:00:00]} 47. Re2 {[%emt 0:00:00]} Bc4 {[%emt 0:00:00]} 48. Re3 {[%emt 0:00:00]} Bd3 {[%emt 0:00:00]} 49. Rh5 {[%emt 0:00:00]} Ng5 {[%emt 0:00:00]} 50. Rxh6 {[%emt 0:00:00]} Be4 {[%emt 0:02:11]} 51. f4 {[%emt 0:00:00]} Rd2+ {[%emt 0:01:34]} 52. Kg1 {[%emt 0:00:00]} Nh3+ {[%emt 0:02:05]} 53. Kf1 {[%emt 0:00:00]} Nf2 {[%emt 0:01:06]} 54. f5 {[%emt 0:00:00]} Rxb2 {[%emt 0:00:38]} 55. Rh7+ {[%emt 0:00:00]} Kg8 {[%emt 0:00:49]} 56. Re7 {[%emt 0:00:00]} Rb1+ {[%emt 0:00:48]} 57. Kxf2 {[%emt 0:00:00]} 1-0

[Event "4NCL Div 2 2024-25"]
[Site "England"]
[Date "2024.11.23"]
[Round "1.39"]
[White "Cundy, Mark A"]
[Black "Fallowfield, Jeremy R"]
[Result "1/2-1/2"]
[ECO "B90"]
[WhiteElo "1914"]
[BlackElo "2072"]
[Annotator "NA RC"]
[PlyCount "64"]
[EventDate "2024.11.23"]
[EventType "team-tourn"]
[EventCountry "ENG"]
[SourceTitle "playchess.com"]
[Source "ChessBase"]
[SourceQuality "1"]
[TimeControl "40/6000+30:3000+30"]

1. e4 {[%emt 0:10:02]} c5 {[%emt 0:10:28]} 2. Nf3 {[%emt 0:00:05]} d6 {[%emt 0:00:06]} 3. d4 {[%emt 0:00:04]} cxd4 {[%emt 0:00:06]} 4. Nxd4 {[%emt 0:00:03]} Nf6 {[%emt 0:00:10]} 5. Nc3 {[%emt 0:00:05]} a6 {[%emt 0:00:18]} 6. Be3 {[%emt 0:00:31]} e5 {[%emt 0:00:08]} 7. Nb3 {[%emt 0:00:22]} Be7 {[%emt 0:00:08]} 8. f3 {[%emt 0:01:11]} Be6 {[%emt 0:00:22]} 9. Qd2 {[%emt 0:00:30]} h5 {[%emt 0:00:18]} 10. a4 {[%emt 0:12:33]} Nbd7 {[%emt 0:06:53]} 11. a5 {[%emt 0:04:39]} Rc8 {[%emt 0:03:24]} 12. Be2 {[%emt 0:04:03]} Qc7 {[%emt 0:09:12]} 13. O-O {[%emt 0:06:01]} Qc6 {[%emt 0:16:21]} 14. Bd3 {[%emt 0:07:18]} d5 {[%emt 0:08:06]} 15. exd5 {[%emt 0:01:32]} Nxd5 {[%emt 0:00:20]} 16. Nxd5 {[%emt 0:00:48]} Bxd5 {[%emt 0:00:42]} 17. Qe2 {[%emt 0:03:13]} O-O {[%emt 0:08:22]} 18. Nd2 {[%emt 0:05:05]} f5 {[%emt 0:13:13]} 19. Bf2 {[%emt 0:07:31]} h4 {[%emt 0:02:19]} 20. h3 {[%emt 0:01:19]} Qh6 {[%emt 0:03:41]} 21. Bc4 {[%emt 0:02:04]} Qe6 {[%emt 0:01:49]} 22. b3 {[%emt 0:01:17]} Bc5 {[%emt 0:02:26]} 23. Bxd5 {[%emt 0:03:10]} Qxd5 {[%emt 0:00:01]} 24. Nc4 {[%emt 0:00:19]} Qe6 {[%emt 0:07:44]} 25. Rad1 {[%emt 0:02:24]} Rce8 {[%emt 0:07:38]} 26. Qd2 {[%emt 0:03:15]} Bxf2+ {[%emt 0:00:27]} 27. Rxf2 {[%emt 0:03:36]} Nf6 {[%emt 0:00:13]} 28. Qd6 {[%emt 0:02:46]} e4 {[%emt 0:00:44]} 29. Qxe6+ {[%emt 0:01:24]} Rxe6 {[%emt 0:00:02]} 30. fxe4 {[%emt 0:00:18]} Nxe4 {[%emt 0:00:03]} 31. Re2 {[%emt 0:01:41]} Rfe8 {[%emt 0:00:34]} 32. Nd2 {[%emt 0:05:00]} Nxd2 {[%emt 0:03:21]} 1/2-1/2